[Event "EYCC Girls U16 2018"]
[Site "Riga"]
[Date "2018.08.26"]
[Round "6"]
[White "Khachatryan, Anna"]
[Black "Schulze, Lara"]
[Result "1-0"]
[ECO "A05"]
[WhiteElo "1969"]
[BlackElo "2167"]
[Annotator "NA"]
[PlyCount "129"]
[EventDate "2018.08.20"]
[EventType "swiss"]
[EventCountry "LAT"]
[SourceTitle "playchess.com"]
[Source "ChessBase"]
[SourceQuality "1"]
[TimeControl "40/5400+30:1800+30"]

1. Nf3 {[%emt 0:00:00]} Nf6 {[%emt 0:00:00]} 2. g3 {[%emt 0:00:00]} b5 {[%emt 0:00:00]} 3. Bg2 {[%emt 0:00:00]} Bb7 {[%emt 0:00:00]} 4. O-O {[%emt 0:00:04]} e6 {[%emt 0:00:00]} 5. d3 {[%emt 0:00:25]} d6 {[%emt 0:00:14]} 6. b3 {[%emt 0:08:55]} Be7 {[%emt 0:01:55]} 7. Bb2 {[%emt 0:00:04]} O-O {[%emt 0:00:20]} 8. Nbd2 {[%emt 0:06:24]} c5 {[%emt 0:03:05]} 9. c4 {[%emt 0:04:58]} a6 {[%emt 0:03:14]} 10. e3 {[%emt 0:09:44]} Nbd7 {[%emt 0:11:56]} 11. Qe2 {[%emt 0:05:48]} d5 {[%emt 0:04:30]} 12. Ne5 {[%emt 0:11:05]} Nxe5 {[%emt 0:04:09]} 13. Bxe5 {[%emt 0:00:05]} Qb6 {[%emt 0:01:05]} 14. Rfd1 {[%emt 0:12:49]} Rfd8 {[%emt 0:01:06]} 15. g4 {[%emt 0:07:35]} Nd7 {[%emt 0:09:17]} 16. Bg3 {[%emt 0:01:01]} a5 {[%emt 0:03:08]} 17. a4 {[%emt 0:02:50]} dxc4 {[%emt 0:03:30]} 18. dxc4 {[%emt 0:00:43]} Bxg2 {[%emt 0:01:58]} 19. Kxg2 {[%emt 0:00:03]} Bf6 {[%emt 0:02:13]} 20. Ra2 {[%emt 0:09:54]} bxa4 {[%emt 0:09:09]} 21. bxa4 {[%emt 0:00:31]} Qc6+ {[%emt 0:03:23]} 22. Qf3 {[%emt 0:03:15]} Ne5 {[%emt 0:06:40]} 23. Bxe5 {[%emt 0:00:18]} Qxf3+ {[%emt 0:00:05]} 24. Kxf3 {[%emt 0:00:14]} Bxe5 {[%emt 0:00:06]} 25. Rb1 {[%emt 0:00:28]} Bc3 {[%emt 0:01:42]} 26. Ke2 {[%emt 0:02:30]} Bb4 {[%emt 0:01:47]} 27. Nb3 {[%emt 0:01:51]} Kf8 {[%emt 0:02:49]} 28. Rd1 {[%emt 0:01:43]} Ke7 {[%emt 0:03:47]} 29. Raa1 {[%emt 0:00:24]} h5 {[%emt 0:11:42]} 30. h3 {[%emt 0:03:22]} Rxd1 {[%emt 0:00:51]} 31. Rxd1 {[%emt 0:00:04]} hxg4 {[%emt 0:00:36]} 32. hxg4 {[%emt 0:00:02]} Rh8 {[%emt 0:00:11]} 33. Kf3 {[%emt 0:02:05]} g5 {[%emt 0:03:34]} 34. Rg1 {[%emt 0:04:50]} Kd6 {[%emt 0:03:52]} 35. Nc1 {[%emt 0:01:59]} Kc6 {[%emt 0:02:27]} 36. Nd3 {[%emt 0:00:09]} f6 {[%emt 0:00:48]} 37. Rd1 {[%emt 0:00:54]} Rb8 {[%emt 0:01:52]} 38. Rb1 {[%emt 0:00:19]} Rd8 {[%emt 0:00:55]} 39. Rd1 {[%emt 0:00:09]} Rd7 {[%emt 0:00:32]} 40. Ke2 {[%emt 0:00:00]} Rh7 {[%emt 0:00:00]} 41. Kf3 {[%emt 0:04:37]} Rb7 {[%emt 0:07:47]} 42. Rb1 {[%emt 0:00:12]} Rd7 {[%emt 0:00:30]} 43. Ke2 {[%emt 0:00:35]} Rh7 {[%emt 0:03:49]} 44. f3 {[%emt 0:06:06]} Rb7 {[%emt 0:05:34]} 45. Nf2 {[%emt 0:01:09]} f5 {[%emt 0:02:14]} 46. gxf5 {[%emt 0:06:37]} exf5 {[%emt 0:00:07]} 47. Nd3 {[%emt 0:00:13]} Rh7 {[%emt 0:04:51]} 48. Rg1 {[%emt 0:00:32]} Rg7 {[%emt 0:04:29]} 49. Rh1 {[%emt 0:09:08]} Kb7 {[%emt 0:00:29]} 50. e4 {[%emt 0:02:03]} fxe4 {[%emt 0:00:53]} 51. fxe4 {[%emt 0:00:01]} g4 {[%emt 0:00:21]} 52. Rg1 {[%emt 0:00:39]} g3 {[%emt 0:02:04]} 53. Ke3 {[%emt 0:03:10]} Kb6 {[%emt 0:01:12]} 54. Rg2 {[%emt 0:01:21]} Bc3 {[%emt 0:00:49]} 55. Kf4 {[%emt 0:01:07]} Rd7 {[%emt 0:01:25]} 56. Rxg3 {[%emt 0:00:17]} Rd4 {[%emt 0:00:59]} 57. Ne5 {[%emt 0:00:17]} Bb4 {[%emt 0:00:46]} 58. Rd3 {[%emt 0:00:43]} Kc7 {[%emt 0:00:27]} 59. Rxd4 {[%emt 0:00:16]} cxd4 {[%emt 0:00:01]} 60. Nd3 {[%emt 0:00:11]} Kd7 {[%emt 0:01:04]} 61. Ke5 {[%emt 0:00:16]} Bc3 {[%emt 0:00:03]} 62. Kd5 {[%emt 0:00:06]} Ke7 {[%emt 0:00:33]} 63. c5 {[%emt 0:01:31]} Kd7 {[%emt 0:00:04]} 64. e5 {[%emt 0:00:18]} Ke7 {[%emt 0:00:16]} 65. c6 {[%emt 0:00:21]} 1-0

[Event "EYCC Girls U16 2018"]
[Site "Riga"]
[Date "2018.08.26"]
[Round "6"]
[White "Kocyigit, Buse Naz"]
[Black "Beydullayeva, Govhar"]
[Result "1/2-1/2"]
[ECO "A43"]
[WhiteElo "1950"]
[BlackElo "2184"]
[Annotator "NA"]
[PlyCount "119"]
[EventDate "2018.08.20"]
[EventType "swiss"]
[EventCountry "LAT"]
[SourceTitle "playchess.com"]
[Source "ChessBase"]
[SourceQuality "1"]
[TimeControl "40/5400+30:1800+30"]

1. d4 {[%emt 0:00:00]} c5 {[%emt 0:00:00]} 2. d5 {[%emt 0:00:20]} d6 {[%emt 0:00:00]} 3. c4 {[%emt 0:00:34]} g6 {[%emt 0:00:37]} 4. Nc3 {[%emt 0:03:11]} Bg7 {[%emt 0:00:09]} 5. Qc2 {[%emt 0:01:40]} Nf6 {[%emt 0:00:48]} 6. e4 {[%emt 0:03:18]} O-O {[%emt 0:04:29]} 7. Bd3 {[%emt 0:01:18]} e6 {[%emt 0:05:53]} 8. h3 {[%emt 0:05:28]} exd5 {[%emt 0:01:43]} 9. cxd5 {[%emt 0:01:25]} Re8 {[%emt 0:02:57]} 10. Nf3 {[%emt 0:04:02]} a6 {[%emt 0:03:21]} 11. a4 {[%emt 0:00:32]} Qc7 {[%emt 0:07:44]} 12. Nd2 {[%emt 0:03:42]} Nbd7 {[%emt 0:02:34]} 13. Nc4 $11 {[%emt 0:08:32]} Rb8 {[%emt 0:06:46]} 14. a5 {[%emt 0:03:14]} b5 {[%emt 0:06:54]} 15. axb6 {[%emt 0:00:06]} Nxb6 {[%emt 0:00:03]} 16. O-O {[%emt 0:09:19]} Nxc4 {[%emt 0:19:57]} 17. Bxc4 {[%emt 0:00:02]} Rb4 {[%emt 0:00:14]} 18. Na2 {[%emt 0:17:25]} Rb6 {[%emt 0:03:18]} 19. f3 {[%emt 0:02:48]} Nh5 {[%emt 0:02:52]} 20. g4 {[%emt 0:05:13]} Bd4+ {[%emt 0:02:25]} 21. Kg2 {[%emt 0:01:25]} Ng7 {[%emt 0:05:47]} 22. Nc3 {[%emt 0:01:10]} f5 {[%emt 0:08:25]} 23. Bd2 {[%emt 0:06:38]} fxe4 {[%emt 0:02:13]} 24. fxe4 {[%emt 0:00:06]} Qe7 {[%emt 0:03:17]} 25. Rf3 {[%emt 0:07:27]} Qh4 {[%emt 0:03:48]} 26. Raf1 {[%emt 0:04:57]} Be5 {[%emt 0:05:40]} 27. Be1 {[%emt 0:02:12]} Qe7 {[%emt 0:00:41]} 28. Bd2 {[%emt 0:01:13]} Qh4 {[%emt 0:00:42]} 29. Be1 {[%emt 0:02:55]} Qe7 {[%emt 0:00:05]} 30. Bd2 {[%emt 0:00:37]} Rb8 {[%emt 0:00:12]} 31. b3 {[%emt 0:03:27]} Qh4 {[%emt 0:00:36]} 32. Be1 {[%emt 0:00:14]} Qe7 {[%emt 0:00:55]} 33. Bd2 {[%emt 0:00:01]} Qh4 {[%emt 0:00:36]} 34. Be1 {[%emt 0:00:01]} Qg5 {[%emt 0:00:07]} 35. Bd2 {[%emt 0:00:23]} Qe7 {[%emt 0:00:50]} 36. Bd3 {[%emt 0:02:02]} Bb7 {[%emt 0:00:34]} 37. Na4 {[%emt 0:00:57]} Bc8 {[%emt 0:00:38]} 38. Nb2 {[%emt 0:00:31]} Qb7 {[%emt 0:00:27]} 39. Be2 {[%emt 0:00:32]} h5 {[%emt 0:00:34]} 40. g5 {[%emt 0:00:00]} Qe7 {[%emt 0:00:00]} 41. Nc4 {[%emt 0:01:17]} Bd4 {[%emt 0:12:23]} 42. Bf4 {[%emt 0:17:11]} Nf5 {[%emt 0:04:33]} 43. exf5 {[%emt 0:01:18]} Qxe2+ {[%emt 0:00:03]} 44. Qxe2 {[%emt 0:00:01]} Rxe2+ {[%emt 0:00:04]} 45. Kg3 {[%emt 0:01:23]} Bxf5 {[%emt 0:02:45]} 46. Nxd6 {[%emt 0:00:27]} Bc2 {[%emt 0:06:59]} 47. Nf5 {[%emt 0:05:07]} Rxb3 {[%emt 0:03:39]} 48. Rxb3 {[%emt 0:04:35]} Bxb3 {[%emt 0:00:04]} 49. d6 {[%emt 0:02:37]} Ba4 {[%emt 0:02:18]} 50. Nxd4 {[%emt 0:01:33]} cxd4 {[%emt 0:00:04]} 51. Ra1 {[%emt 0:00:14]} Bd7 {[%emt 0:01:58]} 52. Rd1 {[%emt 0:00:47]} a5 {[%emt 0:00:48]} 53. Rxd4 {[%emt 0:00:22]} a4 {[%emt 0:00:27]} 54. Rd3 {[%emt 0:00:39]} Kf8 {[%emt 0:00:51]} 55. Rc3 {[%emt 0:00:28]} Re1 {[%emt 0:00:52]} 56. Kf2 {[%emt 0:00:31]} Rh1 {[%emt 0:00:33]} 57. Kg2 {[%emt 0:00:23]} Rd1 {[%emt 0:00:14]} 58. Re3 {[%emt 0:00:36]} Rd4 {[%emt 0:00:45]} 59. Be5 {[%emt 0:00:30]} Rd2+ {[%emt 0:00:06]} 60. Kg3 {[%emt 0:00:27]} 1/2-1/2

[Event "EYCC Girls U16 2018"]
[Site "Riga"]
[Date "2018.08.26"]
[Round "6"]
[White "Aubert, Estee"]
[Black "Srdanovic, Jovana"]
[Result "1-0"]
[ECO "A06"]
[WhiteElo "1934"]
[BlackElo "2128"]
[Annotator "NA"]
[PlyCount "75"]
[EventDate "2018.08.20"]
[EventType "swiss"]
[EventCountry "LAT"]
[SourceTitle "playchess.com"]
[Source "ChessBase"]
[SourceQuality "1"]
[TimeControl "40/5400+30:1800+30"]

1. Nf3 {[%emt 0:00:00]} d5 {[%emt 0:00:00]} 2. e3 {[%emt 0:00:00]} Nf6 {[%emt 0:00:51]} 3. c4 {[%emt 0:00:00]} c6 {[%emt 0:00:10]} 4. Nc3 {[%emt 0:00:00]} e6 {[%emt 0:06:03]} 5. b3 {[%emt 0:00:15]} Nbd7 {[%emt 0:00:09]} 6. Bb2 {[%emt 0:00:18]} Bd6 {[%emt 0:00:34]} 7. Qc2 {[%emt 0:00:08]} Qe7 {[%emt 0:01:51]} 8. Rg1 {[%emt 0:05:23]} h5 {[%emt 0:22:07]} 9. h3 {[%emt 0:14:31]} h4 {[%emt 0:04:32]} 10. Ne2 {[%emt 0:20:48]} e5 {[%emt 0:02:37]} 11. g4 {[%emt 0:03:43]} hxg3 {[%emt 0:03:09]} 12. Nxg3 {[%emt 0:01:12]} g6 {[%emt 0:00:16]} 13. a3 {[%emt 0:14:52]} e4 {[%emt 0:09:54]} 14. Nd4 {[%emt 0:03:54]} Ne5 {[%emt 0:03:12]} 15. Rh1 {[%emt 0:05:32]} a6 {[%emt 0:01:39]} 16. b4 {[%emt 0:07:38]} Bd7 {[%emt 0:01:12]} 17. c5 {[%emt 0:00:43]} Bc7 {[%emt 0:00:17]} 18. Qc3 {[%emt 0:09:09]} Nh5 {[%emt 0:03:10]} 19. Nxh5 {[%emt 0:02:15]} Rxh5 {[%emt 0:00:09]} 20. Kd1 {[%emt 0:00:58]} Ng4 {[%emt 0:01:39]} 21. Kc2 {[%emt 0:00:19]} Nxf2 {[%emt 0:00:34]} 22. Be2 {[%emt 0:00:34]} Rh4 {[%emt 0:03:34]} 23. Rhf1 {[%emt 0:00:35]} Nxh3 {[%emt 0:00:09]} 24. Nb3 {[%emt 0:01:00]} f5 {[%emt 0:05:25]} 25. Rh1 {[%emt 0:01:49]} O-O-O {[%emt 0:01:12]} 26. a4 {[%emt 0:00:55]} f4 {[%emt 0:11:34]} 27. b5 {[%emt 0:01:07]} Bf5 {[%emt 0:06:15]} 28. bxa6 {[%emt 0:03:06]} bxa6 {[%emt 0:00:05]} 29. Nd4 {[%emt 0:00:31]} Kd7 {[%emt 0:00:26]} 30. Bxa6 {[%emt 0:01:16]} Rb8 {[%emt 0:00:34]} 31. Ba3 {[%emt 0:00:43]} fxe3 {[%emt 0:01:35]} 32. Nxc6 {[%emt 0:00:46]} Qf7 {[%emt 0:07:56]} 33. Nxb8+ {[%emt 0:00:08]} Bxb8 {[%emt 0:00:07]} 34. Bb5+ {[%emt 0:00:11]} Kc8 {[%emt 0:00:26]} 35. dxe3 {[%emt 0:00:19]} Rg4 {[%emt 0:01:13]} 36. Ba6+ {[%emt 0:00:22]} Kd7 {[%emt 0:00:47]} 37. c6+ {[%emt 0:00:07]} Ke6 {[%emt 0:00:03]} 38. Bc8+ {[%emt 0:00:34]} 1-0

[Event "EYCC Girls U16 2018"]
[Site "Riga"]
[Date "2018.08.27"]
[Round "7"]
[White "Bucur, Denisa Andreea"]
[Black "Grigorieva, Yulia"]
[Result "1/2-1/2"]
[ECO "D76"]
[WhiteElo "2077"]
[BlackElo "1992"]
[Annotator "NA"]
[PlyCount "73"]
[EventDate "2018.08.20"]
[EventType "swiss"]
[EventCountry "LAT"]
[SourceTitle "playchess.com"]
[Source "ChessBase"]
[SourceQuality "1"]
[TimeControl "40/5400+30:1800+30"]

1. d4 {[%emt 0:00:00]} Nf6 {[%emt 0:00:00]} 2. Nf3 {[%emt 0:00:00]} g6 {[%emt 0:00:00]} 3. c4 {[%emt 0:00:02]} Bg7 {[%emt 0:00:08]} 4. g3 {[%emt 0:00:21]} d5 5. cxd5 {[%emt 0:00:26]} O-O {[%emt 0:00:58]} 6. Bg2 {[%emt 0:00:22]} Nxd5 {[%emt 0:00:12]} 7. O-O {[%emt 0:00:17]} Nb6 {[%emt 0:00:25]} 8. Nc3 {[%emt 0:00:27]} Nc6 {[%emt 0:00:07]} 9. d5 {[%emt 0:00:23]} Na5 {[%emt 0:00:54]} 10. Qc2 {[%emt 0:00:32]} c6 {[%emt 0:02:27]} 11. dxc6 {[%emt 0:00:40]} Nxc6 {[%emt 0:02:43]} 12. Rd1 {[%emt 0:01:00]} Qe8 {[%emt 0:00:52]} 13. Bf4 {[%emt 0:01:08]} Bf5 {[%emt 0:05:13]} 14. Qc1 {[%emt 0:00:51]} Rc8 {[%emt 0:18:07]} 15. Bh6 {[%emt 0:07:30]} e5 {[%emt 0:06:36]} 16. Bxg7 {[%emt 0:02:41]} Kxg7 {[%emt 0:00:09] LiveBook: 5 Games} 17. b3 {[%emt 0:04:46]} f6 {[%emt 0:11:51]} 18. Qb2 {[%emt 0:01:39]} e4 {[%emt 0:08:01]} 19. Nh4 {[%emt 0:02:36]} Qe5 {[%emt 0:02:37]} 20. Nxf5+ {[%emt 0:13:28]} gxf5 $11 {[%emt 0:01:25]} 21. f4 {[%emt 0:02:22]} exf3 {[%emt 0:11:06]} 22. Bxf3 {[%emt 0:13:33]} Nd4 {[%emt 0:06:44]} 23. Rd3 {[%emt 0:09:49]} Rfd8 {[%emt 0:10:15]} 24. Kg2 {[%emt 0:08:41]} Nxf3 {[%emt 0:08:50]} 25. Rxf3 {[%emt 0:00:01]} Rc5 {[%emt 0:02:01]} 26. Kf1 {[%emt 0:11:59]} Rdc8 {[%emt 0:00:39]} 27. Nd1 {[%emt 0:00:31]} Qxb2 {[%emt 0:00:29]} 28. Nxb2 {[%emt 0:00:02]} Rc1+ {[%emt 0:00:27]} 29. Rxc1 {[%emt 0:00:10]} Rxc1+ {[%emt 0:00:01]} 30. Kf2 {[%emt 0:00:28]} Rc2 {[%emt 0:01:03]} 31. Nd3 {[%emt 0:02:31]} Nd5 {[%emt 0:00:32]} 32. Nf4 {[%emt 0:09:12]} Nxf4 {[%emt 0:00:32]} 33. Rxf4 {[%emt 0:00:02]} Rxa2 {[%emt 0:00:20]} 34. Rxf5 {[%emt 0:00:18]} Rb2 {[%emt 0:00:27]} 35. Rb5 {[%emt 0:01:49]} b6 {[%emt 0:00:12]} 36. h4 {[%emt 0:02:44]} Kf7 {[%emt 0:00:36]} 37. g4 {[%emt 0:00:42]} 1/2-1/2

[Event "EYCC Girls U16 2018"]
[Site "Riga"]
[Date "2018.08.27"]
[Round "7"]
[White "Jarocka, Liwia"]
[Black "Khachatryan, Anna"]
[Result "0-1"]
[ECO "B35"]
[WhiteElo "2013"]
[BlackElo "1969"]
[Annotator "NA"]
[PlyCount "156"]
[EventDate "2018.08.20"]
[EventType "swiss"]
[EventCountry "LAT"]
[SourceTitle "playchess.com"]
[Source "ChessBase"]
[SourceQuality "1"]
[TimeControl "40/5400+30:1800+30"]

1. e4 {[%emt 0:00:00]} c5 {[%emt 0:00:00]} 2. Nf3 {[%emt 0:00:00]} Nc6 {[%emt 0:00:00]} 3. d4 {[%emt 0:00:00]} cxd4 {[%emt 0:00:00]} 4. Nxd4 {[%emt 0:00:00]} g6 {[%emt 0:00:00]} 5. Nc3 {[%emt 0:00:05]} Bg7 {[%emt 0:00:00]} 6. Be3 {[%emt 0:00:06]} Nf6 {[%emt 0:00:08]} 7. Bc4 {[%emt 0:00:43]} O-O {[%emt 0:00:11]} 8. Bb3 {[%emt 0:00:21]} a5 {[%emt 0:00:09]} 9. O-O {[%emt 0:00:39]} a4 {[%emt 0:00:19]} 10. Nxa4 {[%emt 0:00:14]} Nxe4 {[%emt 0:00:23]} 11. Nb5 {[%emt 0:00:31]} Ra6 {[%emt 0:01:31] B35: Sicilian: Accelerated Dragon with 5 Nc3: main line} 12. Qe2 {[%emt 0:00:19]} (12. f3 Nf6 13. c4 d6 14. Nac3 Na5 15. Rc1 Be6 16. Ne2 d5 17. c5 Nxb3 18. axb3 Bd7 19. Nbc3 {1-0 (36) Almasi,Z (2689)-Istratescu,A (2602) Bastia 2015}) 12... Na5 {[%emt 0:07:47]} 13. c4 {[%emt 0:06:50]} Nxb3 {[%emt 0:04:04]} 14. axb3 {[%emt 0:00:06]} Nf6 {[%emt 0:10:25]} 15. Rfe1 {[%emt 0:02:08]} d6 {[%emt 0:02:57]} 16. h3 {[%emt 0:05:33]} Bd7 {[%emt 0:01:26]} 17. Rad1 {[%emt 0:02:21]} Bxb5 {[%emt 0:07:41]} 18. cxb5 {[%emt 0:00:14]} Ra8 {[%emt 0:00:19]} 19. Bb6 {[%emt 0:00:05]} Qd7 $146 {[%emt 0:00:00]} 20. Qxe7 {[%emt 0:02:59]} Qxb5 {[%emt 0:00:02]} 21. Qxd6 {[%emt 0:02:05]} Qxb3 {[%emt 0:04:01]} 22. Nc5 {[%emt 0:03:26]} Qxb2 {[%emt 0:00:16]} 23. Rb1 {[%emt 0:04:49]} Qc2 {[%emt 0:01:54]} 24. Rbc1 {[%emt 0:09:55]} Qb2 {[%emt 0:06:45]} 25. Nd3 {[%emt 0:17:38]} Qb5 {[%emt 0:03:26]} 26. Rb1 {[%emt 0:15:05]} Qc6 {[%emt 0:04:33]} 27. Qxc6 {[%emt 0:04:23]} bxc6 {[%emt 0:01:11]} 28. Ne5 {[%emt 0:02:19]} Rfc8 {[%emt 0:01:35]} 29. Rec1 {[%emt 0:02:34]} Nd5 {[%emt 0:01:44]} 30. Nc4 {[%emt 0:01:45]} Nc3 {[%emt 0:02:50]} 31. Rb2 {[%emt 0:01:39]} Na2 {[%emt 0:03:25]} 32. Rxa2 {[%emt 0:00:07]} Rxa2 {[%emt 0:00:05]} 33. Nd6 {[%emt 0:00:47]} Rca8 34. Rxc6 {[%emt 0:00:30]} Ra1+ {[%emt 0:02:02]} 35. Kh2 {[%emt 0:00:05]} Rd1 {[%emt 0:02:51]} 36. g3 {[%emt 0:02:19]} h5 {[%emt 0:01:23]} 37. Ne4 {[%emt 0:00:18]} h4 {[%emt 0:01:39]} 38. gxh4 {[%emt 0:01:13]} Be5+ 39. Kg2 {[%emt 0:00:00]} Kg7 {[%emt 0:00:00]} 40. Be3 {[%emt 0:00:00]} Ra4 {[%emt 0:00:00]} 41. Ng5 {[%emt 0:04:36]} Rxh4 {[%emt 0:14:51]} 42. Nf3 {[%emt 0:02:43]} Rh5 {[%emt 0:00:04]} 43. Rc5 {[%emt 0:01:15]} Bf6 {[%emt 0:00:36]} 44. Rc7 {[%emt 0:00:30]} Ra5 {[%emt 0:02:42]} 45. h4 {[%emt 0:00:42]} Rad5 {[%emt 0:15:58]} 46. Ng5 {[%emt 0:00:55]} Rd7 {[%emt 0:02:08]} 47. Rc4 {[%emt 0:00:38]} Rb1 {[%emt 0:03:49]} 48. Ra4 {[%emt 0:01:03]} Rdb7 {[%emt 0:02:10]} 49. Ra8 {[%emt 0:04:33]} R1b4 {[%emt 0:00:26]} 50. Bc5 {[%emt 0:00:55]} Rb8 {[%emt 0:03:24]} 51. Ra7 {[%emt 0:01:10]} R4b7 {[%emt 0:00:02]} 52. Ra2 {[%emt 0:03:22]} Rb5 {[%emt 0:01:11]} 53. Be3 {[%emt 0:00:12]} Rb4 {[%emt 0:00:16]} 54. Kg3 {[%emt 0:05:39]} Be5+ {[%emt 0:01:12]} 55. Kg2 {[%emt 0:00:24]} R8b7 {[%emt 0:01:32]} 56. Kh3 {[%emt 0:00:34]} Rb1 {[%emt 0:00:33]} 57. Kg2 {[%emt 0:01:27]} Ra1 {[%emt 0:01:14]} 58. Rc2 {[%emt 0:00:26]} Ra4 {[%emt 0:03:12]} 59. Rc8 {[%emt 0:03:00]} Rc7 {[%emt 0:04:23]} ({Less strong is} 59... Rxh4 60. Nf3 $15) 60. Re8 {[%emt 0:00:29]} Bf6 {[%emt 0:00:07]} 61. Ne4 {[%emt 0:06:52]} Bxh4 {[%emt 0:09:07]} 62. Bf4 {[%emt 0:00:57]} Rcc4 {[%emt 0:01:03]} 63. Be5+ {[%emt 0:00:10]} f6 {[%emt 0:00:03]} 64. Re7+ {[%emt 0:00:27]} Kf8 {[%emt 0:01:41]} 65. Bd6 {[%emt 0:00:43]} Kg8 {[%emt 0:00:04]} 66. Re8+ {[%emt 0:02:15]} Kh7 {[%emt 0:00:22]} 67. Re7+ {[%emt 0:00:33]} Kh6 {[%emt 0:00:17]} 68. f3 {[%emt 0:00:17]} Ra6 {[%emt 0:03:46]} 69. Rf7 {[%emt 0:00:57]} Rxe4 {[%emt 0:00:32]} 70. Bf8+ {[%emt 0:00:15]} Kg5 {[%emt 0:00:23]} 71. fxe4 {[%emt 0:00:04]} Kf4 {[%emt 0:00:42]} 72. Kh3 $19 {[%emt 0:00:25]} Bf2 {[%emt 0:00:24]} 73. Re7 {[%emt 0:01:12]} Bd4 {[%emt 0:00:13]} 74. Bg7 {[%emt 0:02:45]} Be5 {[%emt 0:00:11]} 75. Kh4 {[%emt 0:00:43]} Ra2 {[%emt 0:00:47]} 76. Kh3 {[%emt 0:00:11]} Kf3 {[%emt 0:00:06]} 77. Rxe5 {[%emt 0:00:32]} fxe5 {[%emt 0:00:04]} 78. Bxe5 {[%emt 0:00:04]} Ra5 {[%emt 0:00:14]} 0-1

[Event "EYCC Girls U16 2018"]
[Site "Riga"]
[Date "2018.08.27"]
[Round "7"]
[White "Rudzinska, Michalina"]
[Black "Kucharska, Honorata"]
[Result "1/2-1/2"]
[ECO "C41"]
[WhiteElo "2003"]
[BlackElo "2030"]
[Annotator "NA"]
[PlyCount "50"]
[EventDate "2018.08.20"]
[EventType "swiss"]
[EventCountry "LAT"]
[SourceTitle "playchess.com"]
[Source "ChessBase"]
[SourceQuality "1"]
[TimeControl "40/5400+30:1800+30"]

1. e4 {[%emt 0:00:00]} d6 {[%emt 0:00:00]} 2. d4 {[%emt 0:00:00]} Nf6 {[%emt 0:00:00]} 3. Nc3 {[%emt 0:00:00]} e5 {[%emt 0:00:00]} 4. Nf3 {[%emt 0:00:00]} Nbd7 {[%emt 0:00:00]} 5. Bc4 {[%emt 0:00:07]} Be7 {[%emt 0:00:00]} 6. O-O {[%emt 0:00:09]} O-O {[%emt 0:00:00]} 7. Re1 {[%emt 0:00:10]} c6 {[%emt 0:01:26]} 8. a4 {[%emt 0:00:09]} a5 {[%emt 0:00:26]} 9. h3 {[%emt 0:00:14]} Nb6 {[%emt 0:00:51] C41: Philidor Defence} (9... Re8 10. Ba2 Bf8 11. Be3 Qc7 12. Ng5 Re7 13. f4 b6 14. fxe5 dxe5 15. d5 cxd5 16. exd5 {1-0 (16) Wang,H (2709)-Ivanchuk,V (2726) Huaian 2017}) 10. Ba2 {[%emt 0:01:18]} Nfd7 {[%emt 0:00:40]} 11. Be3 {[%emt 0:01:54]} exd4 {[%emt 0:01:05]} 12. Bxd4 {[%emt 0:00:51]} Nc5 {[%emt 0:00:38]} 13. Bxc5 dxc5 {[%emt 0:00:04]} 14. Qe2 {[%emt 0:02:02]} Qd6 {[%emt 0:00:59]} 15. Rad1 {[%emt 0:05:29]} Qh6 {[%emt 0:02:26]} 16. Nh2 {[%emt 0:10:31]} Be6 {[%emt 0:06:32]} 17. Bxe6 {[%emt 0:00:27]} fxe6 $146 {[%emt 0:02:31]} ({Predecessor:} 17... Qxe6) 18. Ng4 {[%emt 0:06:34]} Qg5 {[%emt 0:01:55]} 19. Rd3 {[%emt 0:01:31]} h5 {[%emt 0:06:36]} 20. Nh2 {[%emt 0:01:25]} Rad8 $11 {[%emt 0:02:31]} 21. Red1 {[%emt 0:05:59]} Rxd3 {[%emt 0:05:42]} 22. Rxd3 {[%emt 0:05:25]} c4 {[%emt 0:06:22]} 23. Rd1 {[%emt 0:07:22]} Bc5 {[%emt 0:04:34]} 24. Nf3 {[%emt 0:02:55]} Qf4 {[%emt 0:02:05]} 25. Rd2 {[%emt 0:09:41]} e5 {[%emt 0:10:53]} 1/2-1/2

[Event "EYCC Girls U16 2018"]
[Site "Riga"]
[Date "2018.08.27"]
[Round "7"]
[White "Nestorovic, Katarina"]
[Black "Bulatova, Kamaliya"]
[Result "0-1"]
[ECO "B90"]
[WhiteElo "1995"]
[BlackElo "2043"]
[Annotator "NA"]
[PlyCount "88"]
[EventDate "2018.08.20"]
[EventType "swiss"]
[EventCountry "LAT"]
[SourceTitle "playchess.com"]
[Source "ChessBase"]
[SourceQuality "1"]
[TimeControl "40/5400+30:1800+30"]

1. e4 {[%emt 0:00:00]} c5 {[%emt 0:00:00]} 2. Nf3 {[%emt 0:00:00]} d6 {[%emt 0:00:00]} 3. d4 {[%emt 0:00:00]} cxd4 {[%emt 0:00:00]} 4. Nxd4 {[%emt 0:00:00]} Nf6 $11 {[%emt 0:00:00]} 5. Nc3 {[%emt 0:00:00]} a6 {[%emt 0:00:00]} 6. Nb3 {[%emt 0:00:15]} e6 {[%emt 0:00:18]} 7. g4 {[%emt 0:00:25]} b5 {[%emt 0:00:20]} 8. Bg2 {[%emt 0:00:36]} Bb7 {[%emt 0:00:05]} 9. a3 {[%emt 0:00:29]} Be7 {[%emt 0:01:11]} 10. Qe2 {[%emt 0:01:20]} Nc6 {[%emt 0:01:23]} 11. f4 {[%emt 0:00:32]} Nd7 {[%emt 0:02:05]} 12. g5 {[%emt 0:06:05]} Nb6 {[%emt 0:04:27]} 13. Bd2 {[%emt 0:01:25]} Rc8 {[%emt 0:04:42]} 14. O-O-O {[%emt 0:00:56]} Nc4 {[%emt 0:04:21]} 15. h4 {[%emt 0:04:05]} N6a5 {[%emt 0:17:30]} 16. Nxa5 {[%emt 0:12:05]} Qxa5 {[%emt 0:04:21]} 17. Na2 {[%emt 0:03:26]} Qb6 {[%emt 0:13:06]} 18. Rh3 {[%emt 0:05:32]} a5 {[%emt 0:03:15]} 19. f5 {[%emt 0:21:18]} b4 {[%emt 0:11:15]} 20. axb4 {[%emt 0:17:09]} axb4 {[%emt 0:01:38]} 21. Bxb4 {[%emt 0:05:20]} Qa6 {[%emt 0:03:33]} 22. b3 {[%emt 0:02:50]} Qxa2 {[%emt 0:02:31]} 23. bxc4 {[%emt 0:00:41]} Qa1+ {[%emt 0:06:42]} 24. Kd2 {[%emt 0:00:09]} Qa4 {[%emt 0:00:07]} 25. Rb1 {[%emt 0:03:24]} Ba6 {[%emt 0:07:30]} 26. Ra3 {[%emt 0:03:59]} Qc6 {[%emt 0:00:01]} 27. e5 {[%emt 0:02:57]} d5 {[%emt 0:03:28]} 28. Bxe7 {[%emt 0:00:41]} Kxe7 {[%emt 0:00:58]} 29. Qf2 {[%emt 0:02:49]} Qxc4 {[%emt 0:01:49]} 30. Qa7+ {[%emt 0:04:34]} Rc7 {[%emt 0:00:04]} 31. Qxa6 {[%emt 0:00:17]} Qxc2+ 32. Ke3 d4+ {[%emt 0:02:14]} 33. Kf3 {[%emt 0:01:11]} Qxf5+ {[%emt 0:00:13]} 34. Kg3 {[%emt 0:00:23]} Qxe5+ {[%emt 0:00:10]} 35. Kf2 {[%emt 0:01:01]} Qf5+ {[%emt 0:02:25]} 36. Rf3 {[%emt 0:00:07]} Qxb1 {[%emt 0:01:29]} 37. Qa3+ {[%emt 0:00:01]} Kd8 {[%emt 0:00:13]} 38. Qa8+ {[%emt 0:00:06]} Rc8 {[%emt 0:00:12]} 39. Qa5+ {[%emt 0:00:04]} Rc7 {[%emt 0:03:53]} 40. Qa8+ {[%emt 0:00:00]} Ke7 {[%emt 0:00:00]} 41. Qxh8 {[%emt 0:04:01]} Rc2+ {[%emt 0:00:58]} 42. Kg3 {[%emt 0:00:13]} Qg1 {[%emt 0:00:21]} 43. Qxg7 {[%emt 0:03:39]} Rxg2+ {[%emt 0:00:18]} 44. Kf4 {[%emt 0:00:05]} Rg4+ {[%emt 0:00:08]} 0-1